fUSD/lending_fUSD_20260605
["ID","MTS","AMOUNT","RATE_DAILY","PERIOD"]
[424202680,1780655444000,-91.0,0.00015,2]
[424202679,1780655444000,-442.0,0.00011684,2]
[424202648,1780655444000,-150.0,0.00014986,2]
[424202685,1780655446000,-379993.74062297,0.00015,2]
[424202682,1780655446000,-442.0,0.00011684,2]
[424202684,1780655446000,-4160.08629903,0.00015,2]
[424202683,1780655446000,-3641.0,0.00013433,2]
[424202704,1780655463000,152.0,0.00011399,7]
[424202705,1780655463000,152.0,0.00011399,7]
[424202709,1780655522000,-411.47901506,0.00010116,2]
[424202708,1780655522000,-88.52098494,0.00010116,2]
[424202706,1780655522000,-150.0,8.92e-05,2]
[424202707,1780655522000,-261.47901506,9.196e-05,2]
[424202710,1780655647000,-445.22582309,0.00011684,2]
[424202711,1780655700000,-500.0,0.00011886,2]
[424202712,1780655754000,-1200.0,0.00011885,2]
[424202713,1780655807000,-500.0,0.00011885,2]
[424202714,1780655863000,-520.5370677,0.00011885,2]
[424202715,1780655916000,-500.0,0.00011885,2]
[424202716,1780655927000,415.77156336,0.00011786,2]
[424202717,1780655969000,-84.22843664,0.00011786,2]
[424202718,1780656015000,-318.93840945,0.00011878,2]
[424202720,1780656069000,-500.0,0.00011885,2]
[424202721,1780656122000,-500.0,0.00011885,2]
[424202722,1780656134000,178.6,0.00023,30]
[424202774,1780656632000,-150.0,0.00013424,2]
[424202750,1780656632000,-9999.99,0.00012508,2]
[424202759,1780656632000,-152.76475241,0.00012895,2]
[424202760,1780656632000,-191.35833765,0.00012895,2]
[424202751,1780656632000,-500.0,0.00012761,3]
[424202753,1780656632000,-150.0,0.0001285,2]
[424202756,1780656632000,-500.0,0.00012895,2]
[424202757,1780656632000,-500.0,0.00012895,2]
[424202758,1780656632000,-185.63985114,0.00012895,2]
[424202763,1780656632000,-477.29257255,0.00012895,2]
[424202766,1780656632000,-299.99,0.00012896,2]
[424202769,1780656632000,-215.77576141,0.00012932,2]
[424202768,1780656632000,-999.99,0.00012896,2]
[424202767,1780656632000,-21015.65,0.00012896,2]
[424202772,1780656632000,-193.0,0.0001299,2]
[424202775,1780656632000,-196.34132809,0.00013424,2]
[424202776,1780656632000,-218.70520512,0.00013424,2]
[424202773,1780656632000,-166.66,0.00013348,2]
[424202746,1780656632000,-1688.8,0.00012508,2]
[424202752,1780656632000,-1200.0,0.00012848,2]
[424202736,1780656632000,-152.0,0.00011809,2]
[424202737,1780656632000,-250.0,0.0001188,2]
[424202738,1780656632000,-152.0,0.0001195,2]
[424202741,1780656632000,-290.43,0.00012419,2]
[424202740,1780656632000,-162.11,0.00012372,2]
[424202742,1780656632000,-200.0,0.00012459,2]
[424202745,1780656632000,-163.61,0.00012508,2]
[424202749,1780656632000,-9999.99,0.00012508,2]
[424202747,1780656632000,-150.99,0.00012508,2]
[424202743,1780656632000,-528.05665284,0.00012507,2]
[424202744,1780656632000,-1071.8,0.00012508,2]
[424202739,1780656632000,-250.0,0.00012229,2]
[424202748,1780656632000,-21468.32,0.00012508,2]
[424202761,1780656632000,-371.43432327,0.00012895,2]
[424202754,1780656632000,-1371.06,0.0001285,2]
[424202755,1780656632000,-1000.0,0.00012895,2]
[424202764,1780656632000,-150.0,0.00012895,2]
[424202795,1780656632000,-150.0,0.00013488,2]
[424202770,1780656632000,-160.0,0.00012935,2]
[424202801,1780656632000,-184.05691112,0.00013503,2]
[424202800,1780656632000,-150.0,0.00013488,2]
[424202794,1780656632000,-150.0,0.00013488,2]
[424202797,1780656632000,-150.0,0.00013488,2]
[424202813,1780656632000,-326.68016189,0.00013563,2]
[424202803,1780656632000,-184.05691112,0.00013518,2]
[424202802,1780656632000,-150.0,0.00013513,2]
[424202805,1780656632000,-7076.5352,0.00013525,2]
[424202804,1780656632000,-4177.6991,0.00013525,2]
[424202807,1780656632000,-184.05691112,0.00013533,2]
[424202809,1780656632000,-184.05691112,0.00013548,2]
[424202811,1780656632000,-150.0,0.00013559,2]
[424202808,1780656632000,-150.0,0.00013538,2]
[424202810,1780656632000,-150.0,0.0001355,2]
[424202771,1780656632000,-250.0,0.0001299,2]
[424202796,1780656632000,-150.0,0.00013488,2]
[424202790,1780656632000,-150.0,0.00013488,2]
[424202812,1780656632000,-150.0,0.00013559,2]
[424202793,1780656632000,-150.0,0.00013488,2]
[424202799,1780656632000,-184.05691112,0.00013488,2]
[424202778,1780656632000,-500.0,0.00013424,2]
[424202788,1780656632000,-150.0,0.00013488,2]
[424202779,1780656632000,-500.0,0.00013424,2]
[424202777,1780656632000,-500.0,0.00013424,2]
[424202782,1780656632000,-500.0,0.00013424,2]
[424202781,1780656632000,-500.0,0.00013424,2]
[424202780,1780656632000,-500.0,0.00013424,2]
[424202806,1780656632000,-2137.7846,0.00013525,2]
[424202783,1780656632000,-500.0,0.00013424,2]
[424202787,1780656632000,-150.0,0.00013488,2]
[424202784,1780656632000,-150.0,0.00013424,2]
[424202785,1780656632000,-292.0,0.00013424,2]
[424202786,1780656632000,-150.0,0.00013488,2]
[424202791,1780656632000,-150.0,0.00013488,2]
[424202789,1780656632000,-150.0,0.00013488,2]
[424202792,1780656632000,-150.0,0.00013488,2]
[424202798,1780656632000,-203.7220427,0.00013488,2]
[424202821,1780656637000,-2341.42170654,0.00013563,2]
[424202822,1780656637000,-1063.13829346,0.00013563,2]
[424202820,1780656637000,-884.89813157,0.00013563,2]
[424202825,1780656637000,-84.93256136,0.00013563,2]
[424202826,1780656637000,-849.0,0.00013563,2]
[424202824,1780656637000,-437.0,0.00013563,2]
[424202823,1780656637000,-293.86170654,0.00013563,2]
[424202854,1780656640000,-150.0,0.00013613,2]
[424202850,1780656640000,-2500.0,0.00013599,2]
[424202860,1780656640000,-150.0,0.0001363,2]
[424202851,1780656640000,-200.0,0.000136,4]
[424202861,1780656640000,-184.05691112,0.00013639,2]
[424202856,1780656640000,-150.0,0.00013624,2]
[424202855,1780656640000,-150.0,0.00013615,2]
[424202862,1780656640000,-150.0,0.0001364,2]
[424202858,1780656640000,-64103.71,0.00013625,2]
[424202857,1780656640000,-184.05691112,0.00013624,2]
[424202852,1780656640000,-150.0,0.00013603,2]
[424202859,1780656640000,-150.0,0.0001363,2]
[424202853,1780656640000,-184.05691112,0.00013609,2]
[424202840,1780656640000,-330.0,0.00013563,2]
[424202847,1780656640000,-184.05691112,0.00013578,2]
[424202843,1780656640000,-419.0,0.00013563,2]
[424202846,1780656640000,-150.0,0.00013564,2]
[424202848,1780656640000,-150.0,0.00013589,2]
[424202845,1780656640000,-184.05691112,0.00013563,2]
[424202841,1780656640000,-657.66114797,0.00013563,2]
[424202837,1780656640000,-250.0,0.00013563,2]
[424202839,1780656640000,-74.00285203,0.00013563,2]
[424202836,1780656640000,-896.39503292,0.00013563,2]
[424202838,1780656640000,-277.0,0.00013563,2]
[424202834,1780656640000,-339.06743864,0.00013563,2]
[424202864,1780656640000,-150.0,0.00013665,2]
[424202849,1780656640000,-184.05691112,0.00013594,2]
[424202835,1780656640000,-330.60496708,0.00013563,2]
[424202872,1780656640000,-500.0,0.00013698,2]
[424202874,1780656640000,-200.0,0.00013699,2]
[424202895,1780656640000,-500.0,0.00013699,2]
[424202893,1780656640000,-500.0,0.00013699,2]
[424202894,1780656640000,-500.0,0.00013699,2]
[424202892,1780656640000,-500.0,0.00013699,2]
[424202891,1780656640000,-500.0,0.00013699,2]
[424202889,1780656640000,-500.0,0.00013699,2]
[424202873,1780656640000,-451.55425644,0.00013698,2]
[424202887,1780656640000,-500.0,0.00013699,2]
[424202883,1780656640000,-500.0,0.00013699,2]
[424202881,1780656640000,-500.0,0.00013699,2]
[424202884,1780656640000,-500.0,0.00013699,2]
[424202885,1780656640000,-500.0,0.00013699,2]
[424202886,1780656640000,-500.0,0.00013699,2]
[424202890,1780656640000,-500.0,0.00013699,2]
[424202882,1780656640000,-500.0,0.00013699,2]
[424202888,1780656640000,-500.0,0.00013699,2]
[424202863,1780656640000,-184.05691112,0.00013654,2]
[424202865,1780656640000,-184.05691112,0.00013669,2]
[424202866,1780656640000,-150.0,0.00013675,2]
[424202870,1780656640000,-500.0,0.00013698,2]
[424202868,1780656640000,-150.0,0.00013691,2]
[424202867,1780656640000,-184.05691112,0.00013684,2]
[424202869,1780656640000,-500.0,0.00013698,2]
[424202875,1780656640000,-166.66,0.00013699,2]
[424202877,1780656640000,-500.0,0.00013699,2]
[424202876,1780656640000,-500.0,0.00013699,2]
[424202879,1780656640000,-500.0,0.00013699,2]
[424202871,1780656640000,-500.19382862,0.00013698,2]
[424202937,1780656641000,-500.0,0.00013699,2]
[424202942,1780656641000,-2207.44694842,0.00013699,2]
[424202938,1780656641000,-2207.44694842,0.00013699,2]
[424202933,1780656641000,-500.0,0.00013699,2]
[424202936,1780656641000,-500.0,0.00013699,2]
[424202932,1780656641000,-500.0,0.00013699,2]
[424202940,1780656641000,-2207.44694842,0.00013699,2]
[424202934,1780656641000,-500.0,0.00013699,2]
[424202929,1780656641000,-500.0,0.00013699,2]
[424202930,1780656641000,-500.0,0.00013699,2]
[424202931,1780656641000,-500.0,0.00013699,2]
[424202939,1780656641000,-2207.44694842,0.00013699,2]
[424202935,1780656641000,-500.0,0.00013699,2]
[424202952,1780656641000,-2207.44694842,0.00013699,2]
[424202957,1780656641000,-2207.44694842,0.00013699,2]
[424202943,1780656641000,-2207.44694842,0.00013699,2]
[424202950,1780656641000,-2207.44694842,0.00013699,2]
[424202944,1780656641000,-2207.44694842,0.00013699,2]
[424202946,1780656641000,-2207.44694842,0.00013699,2]
[424202947,1780656641000,-2207.44694842,0.00013699,2]
[424202949,1780656641000,-2207.44694842,0.00013699,2]
[424202951,1780656641000,-2207.44694842,0.00013699,2]
[424202954,1780656641000,-2207.44694842,0.00013699,2]
[424202945,1780656641000,-2207.44694842,0.00013699,2]
[424202948,1780656641000,-2207.44694842,0.00013699,2]
[424202955,1780656641000,-2207.44694842,0.00013699,2]
[424202928,1780656641000,-500.0,0.00013699,2]
[424202959,1780656641000,-2207.44694842,0.00013699,2]
[424202953,1780656641000,-2207.44694842,0.00013699,2]
[424202924,1780656641000,-500.0,0.00013699,2]
[424202912,1780656641000,-500.0,0.00013699,2]
[424202920,1780656641000,-500.0,0.00013699,2]
[424202900,1780656641000,-500.0,0.00013699,2]
[424202901,1780656641000,-500.0,0.00013699,2]
[424202899,1780656641000,-500.0,0.00013699,2]
[424202898,1780656641000,-500.0,0.00013699,2]
[424202896,1780656641000,-500.0,0.00013699,2]
[424202897,1780656641000,-500.0,0.00013699,2]
[424202902,1780656641000,-500.0,0.00013699,2]
[424202913,1780656641000,-500.0,0.00013699,2]
[424202904,1780656641000,-500.0,0.00013699,2]
[424202914,1780656641000,-500.0,0.00013699,2]
[424202903,1780656641000,-500.0,0.00013699,2]
[424202905,1780656641000,-500.0,0.00013699,2]
[424202906,1780656641000,-500.0,0.00013699,2]
[424202907,1780656641000,-500.0,0.00013699,2]
[424202908,1780656641000,-500.0,0.00013699,2]
[424202909,1780656641000,-500.0,0.00013699,2]
[424202910,1780656641000,-500.0,0.00013699,2]
[424202958,1780656641000,-2207.44694842,0.00013699,2]
[424202911,1780656641000,-500.0,0.00013699,2]
[424202916,1780656641000,-500.0,0.00013699,2]
[424202926,1780656641000,-500.0,0.00013699,2]
[424202919,1780656641000,-530.828823,0.00013699,2]
[424202917,1780656641000,-500.0,0.00013699,2]
[424202918,1780656641000,-500.0,0.00013699,2]
[424202915,1780656641000,-500.0,0.00013699,2]
[424202927,1780656641000,-500.0,0.00013699,2]
[424202923,1780656641000,-500.0,0.00013699,2]
[424202922,1780656641000,-500.0,0.00013699,2]
[424202921,1780656641000,-500.0,0.00013699,2]
[424202925,1780656641000,-500.0,0.00013699,2]
[424202964,1780656641000,-2207.44694842,0.00013699,2]
[424202941,1780656641000,-2207.44694842,0.00013699,2]
[424202956,1780656641000,-2207.44694842,0.00013699,2]
[424202995,1780656641000,-150.0,0.00013843,2]
[424202993,1780656641000,-166.66,0.00013836,2]
[424202996,1780656641000,-150.0,0.00013844,2]
[424202999,1780656641000,-150.0,0.00013862,2]
[424202994,1780656641000,-184.05691112,0.00013836,2]
[424203005,1780656641000,-150.0,0.00013896,2]
[424203003,1780656641000,-184.05691112,0.00013881,2]
[424202997,1780656641000,-150.0,0.00013844,2]
[424203000,1780656641000,-150.0,0.00013862,2]
[424203001,1780656641000,-184.05691112,0.00013866,2]
[424202998,1780656641000,-184.05691112,0.00013851,2]
[424203006,1780656641000,-184.05691112,0.00013896,2]
[424203008,1780656641000,-184.05691112,0.00013912,2]
[424203010,1780656641000,-150.0,0.00013916,2]
[424203009,1780656641000,-150.0,0.00013916,2]
[424203007,1780656641000,-1100.0,0.000139,5]
[424203011,1780656641000,-4000.0,0.00013919,2]
[424203016,1780656641000,-184.05691112,0.00013927,2]
[424203013,1780656641000,-158.70286579,0.00013921,2]
[424203012,1780656641000,-150.0,0.00013919,2]
[424203014,1780656641000,-508.82107739,0.00013921,2]
[424203015,1780656641000,-150.0,0.00013925,2]
[424203017,1780656641000,-184.05691112,0.00013942,2]
[424203019,1780656641000,-150.0,0.00013949,2]
[424203018,1780656641000,-150.0,0.00013945,2]
[424203020,1780656641000,-184.05691112,0.00013957,2]
[424202965,1780656641000,-2207.44694842,0.00013699,2]
[424203023,1780656641000,-166.66,0.00013973,2]
[424203021,1780656641000,-150.0,0.0001397,2]
[424203002,1780656641000,-150.0,0.00013869,2]
[424203004,1780656641000,-150.0,0.00013894,2]
[424203022,1780656641000,-184.05691112,0.00013972,2]
[424202991,1780656641000,-184.05691112,0.00013821,2]
[424202981,1780656641000,-150.0,0.00013773,2]
[424202960,1780656641000,-2207.44694842,0.00013699,2]
[424202962,1780656641000,-2207.44694842,0.00013699,2]
[424202963,1780656641000,-2207.44694842,0.00013699,2]
[424202961,1780656641000,-2207.44694842,0.00013699,2]
[424202978,1780656641000,-184.05691112,0.0001376,2]
[424202968,1780656641000,-150.0,0.00013702,2]
[424202969,1780656641000,-150.0,0.00013702,2]
[424202979,1780656641000,-150.0,0.00013767,2]
[424202967,1780656641000,-500.0,0.000137,5]
[424202970,1780656641000,-184.05691112,0.00013715,2]
[424202973,1780656641000,-184.05691112,0.0001373,2]
[424202971,1780656641000,-150.0,0.00013716,2]
[424202976,1780656641000,-184.05691112,0.00013745,2]
[424202966,1780656641000,-184.05691112,0.000137,2]
[424202975,1780656641000,-150.0,0.00013742,2]
[424202972,1780656641000,-150.0,0.00013718,2]
[424202990,1780656641000,-150.0,0.00013818,2]
[424202985,1780656641000,-184.05691112,0.0001379,2]
[424202989,1780656641000,-184.05691112,0.00013806,2]
[424202988,1780656641000,-800.0,0.000138,5]
[424202986,1780656641000,-150.0,0.00013792,2]
[424202987,1780656641000,-150.0,0.000138,2]
[424202984,1780656641000,-166.66,0.00013788,2]
[424202982,1780656641000,-150.0,0.00013773,2]
[424202983,1780656641000,-184.05691112,0.00013775,2]
[424202980,1780656641000,-2629.394,0.00013772,2]
[424202974,1780656641000,-150.0,0.00013737,2]
[424202977,1780656641000,-150.0,0.0001376,2]
[424202992,1780656641000,-150.0,0.00013834,2]
[424203065,1780656642000,-150.0,0.00014064,2]
[424203063,1780656642000,-150.0,0.00014059,2]
[424203060,1780656642000,-150.0,0.0001405,2]
[424203062,1780656642000,-150.0,0.00014059,2]
[424203064,1780656642000,-184.05691112,0.00014063,2]
[424203058,1780656642000,-150.0,0.00014046,2]
[424203059,1780656642000,-184.05691112,0.00014048,2]
[424203057,1780656642000,-150.0,0.00014044,2]
[424203047,1780656642000,-457.12873569,0.00014018,2]
[424203068,1780656642000,-150.0,0.00014087,2]
[424203061,1780656642000,-2000.0,0.00014052,2]
[424203051,1780656642000,-1388.0,0.00014019,5]
[424203070,1780656642000,-150.0,0.00014097,2]
[424203066,1780656642000,-150.0,0.00014072,2]
[424203069,1780656642000,-184.05691112,0.00014093,2]
[424203072,1780656642000,-166.66,0.0001411,2]
[424203073,1780656642000,-150.0,0.00014112,2]
[424203071,1780656642000,-184.05691112,0.00014108,2]
[424203074,1780656642000,-10522.51303131,0.00014119,2]
[424203075,1780656642000,-150.0,0.00014123,2]
[424203077,1780656642000,-150.0,0.0001413,2]
[424203085,1780656642000,-150.0,0.00014169,2]
[424203086,1780656642000,-184.05691112,0.00014169,2]
[424203080,1780656642000,-1680.0,0.00014133,2]
[424203082,1780656642000,-184.05691112,0.00014139,2]
[424203048,1780656642000,-250.0,0.00014019,2]
[424203087,1780656642000,-150.0,0.00014173,2]
[424203050,1780656642000,-1000.0,0.00014019,2]
[424203037,1780656642000,-500.0,0.00014018,2]
[424203052,1780656642000,-2500000.0,0.00014019,2]
[424203030,1780656642000,-150.0,0.00014001,2]
[424203029,1780656642000,-250.0,0.00014,2]
[424203024,1780656642000,-150.0,0.00013987,2]
[424203025,1780656642000,-150.0,0.00013987,2]
[424203028,1780656642000,-150.0,0.00013996,2]
[424203027,1780656642000,-150.0,0.00013987,2]
[424203026,1780656642000,-184.05691112,0.00013987,2]
[424203033,1780656642000,-526.44,0.00014017,2]
[424203031,1780656642000,-184.05691112,0.00014002,2]
[424203034,1780656642000,-184.05691112,0.00014017,2]
[424203042,1780656642000,-241.38210982,0.00014018,2]
[424203038,1780656642000,-500.0,0.00014018,2]
[424203049,1780656642000,-1000.0,0.00014019,2]
[424203032,1780656642000,-255.0,0.00014004,2]
[424203035,1780656642000,-500.0,0.00014018,2]
[424203036,1780656642000,-205.25819266,0.00014018,2]
[424203041,1780656642000,-500.0,0.00014018,2]
[424203039,1780656642000,-500.0,0.00014018,2]
[424203040,1780656642000,-500.0,0.00014018,2]
[424203055,1780656642000,-150.0,0.00014033,2]
[424203044,1780656642000,-500.0,0.00014018,2]
[424203045,1780656642000,-500.0,0.00014018,2]
[424203046,1780656642000,-500.0,0.00014018,2]
[424203056,1780656642000,-184.05691112,0.00014033,2]
[424203054,1780656642000,-508.82107737,0.0001403,2]
[424203053,1780656642000,-150.0,0.00014021,2]
[424203043,1780656642000,-150.0,0.00014018,2]
[424203076,1780656642000,-184.05691112,0.00014123,2]
[424203067,1780656642000,-184.05691112,0.00014078,2]
[424203081,1780656642000,-508.82107737,0.00014139,2]
[424203124,1780656642000,-184.05691112,0.00014335,2]
[424203115,1780656642000,-184.05691112,0.0001429,2]
[424203117,1780656642000,-150.0,0.00014299,2]
[424203120,1780656642000,-150.0,0.00014305,2]
[424203118,1780656642000,-150.0,0.000143,2]
[424203122,1780656642000,-184.05691112,0.0001432,2]
[424203119,1780656642000,-150.0,0.00014301,2]
[424203121,1780656642000,-184.05691112,0.00014305,2]
[424203123,1780656642000,-150.0,0.00014326,2]
[424203136,1780656642000,-166.66,0.00014384,2]
[424203126,1780656642000,-150.0,0.00014344,2]
[424203125,1780656642000,-150.0,0.00014344,2]
[424203113,1780656642000,-184.05691112,0.00014275,2]
[424203127,1780656642000,-150.0,0.00014344,2]
[424203130,1780656642000,-508.82107737,0.00014356,2]
[424203131,1780656642000,-150.0,0.00014362,2]
[424203132,1780656642000,-184.05691112,0.00014366,2]
[424203129,1780656642000,-150.0,0.00014351,2]
[424203133,1780656642000,-200.0,0.00014368,2]
[424203134,1780656642000,-150.0,0.00014377,2]
[424203137,1780656642000,-150.0,0.00014387,2]
[424203140,1780656642000,-150.0,0.0001441,2]
[424203139,1780656642000,-150.0,0.00014402,2]
[424203141,1780656642000,-184.05691112,0.00014411,2]
[424203138,1780656642000,-184.05691112,0.00014396,2]
[424203078,1780656642000,-150.0,0.0001413,2]
[424203128,1780656642000,-184.05691112,0.00014351,2]
[424203116,1780656642000,-150.0,0.00014295,2]
[424203135,1780656642000,-184.05691112,0.00014381,2]
[424203108,1780656642000,-150.0,0.0001425,2]
[424203114,1780656642000,-150.0,0.00014275,2]
[424203079,1780656642000,-150.0,0.0001413,2]
[424203084,1780656642000,-184.05691112,0.00014154,2]
[424203083,1780656642000,-150.0,0.00014148,2]
[424203088,1780656642000,-150.0,0.00014173,2]
[424203090,1780656642000,-150.0,0.00014179,2]
[424203099,1780656642000,-166.66,0.00014229,2]
[424203093,1780656642000,-184.05691112,0.00014199,2]
[424203091,1780656642000,-184.05691112,0.00014184,2]
[424203095,1780656642000,-150.0,0.00014201,2]
[424203094,1780656642000,-150.0,0.00014201,2]
[424203098,1780656642000,-150.0,0.00014224,2]
[424203092,1780656642000,-150.0,0.00014199,2]
[424203089,1780656642000,-150.0,0.00014175,2]
[424203097,1780656642000,-150.0,0.00014216,2]
[424203109,1780656642000,-150.0,0.00014258,2]
[424203096,1780656642000,-184.05691112,0.00014214,2]
[424203110,1780656642000,-184.05691112,0.0001426,2]
[424203107,1780656642000,-508.82107737,0.00014247,2]
[424203102,1780656642000,-150.0,0.00014237,2]
[424203106,1780656642000,-158.70286579,0.00014247,2]
[424203104,1780656642000,-184.05691112,0.00014245,2]
[424203105,1780656642000,-166.66,0.00014247,2]
[424203100,1780656642000,-184.05691112,0.00014229,2]
[424203111,1780656642000,-150.0,0.00014273,2]
[424203112,1780656642000,-150.0,0.00014273,2]
[424203101,1780656642000,-150.0,0.00014237,2]
[424203103,1780656642000,-150.0,0.00014237,2]
[424203166,1780656643000,-150.0,0.00014529,2]
[424203171,1780656643000,-150.0,0.00014558,2]
[424203170,1780656643000,-150.0,0.00014554,2]
[424203168,1780656643000,-184.05691112,0.00014547,2]
[424203162,1780656643000,-150.0,0.00014504,2]
[424203165,1780656643000,-150.0,0.00014525,2]
[424203172,1780656643000,-150.0,0.00014558,2]
[424203169,1780656643000,-150.0,0.00014549,2]
[424203174,1780656643000,-184.05691112,0.00014562,2]
[424203182,1780656643000,-150.0,0.00014601,2]
[424203173,1780656643000,-150.0,0.00014558,2]
[424203176,1780656643000,-508.82107737,0.00014574,2]
[424203177,1780656643000,-150.0,0.00014578,2]
[424203181,1780656643000,-1400.0,0.000146,5]
[424203178,1780656643000,-184.05691112,0.00014578,2]
[424203183,1780656643000,-150.0,0.00014605,2]
[424203167,1780656643000,-184.05691112,0.00014532,2]
[424203180,1780656643000,-184.05691112,0.00014593,2]
[424203175,1780656643000,-158.70286579,0.00014574,2]
[424203164,1780656643000,-184.05691112,0.00014517,2]
[424203143,1780656643000,-150.0,0.00014415,2]
[424203161,1780656643000,-184.05691112,0.00014502,2]
[424203185,1780656643000,-150.0,0.00014612,2]
[424203142,1780656643000,-150.0,0.00014415,2]
[424203147,1780656643000,-150.0,0.0001443,2]
[424203144,1780656643000,-150.0,0.00014424,2]
[424203148,1780656643000,-150.0,0.00014441,2]
[424203145,1780656643000,-184.05691112,0.00014426,2]
[424203146,1780656643000,-150.0,0.00014427,2]
[424203150,1780656643000,-150.0,0.00014453,2]
[424203160,1780656643000,-3368.74,0.00014497,2]
[424203157,1780656643000,-150.0,0.00014487,2]
[424203152,1780656643000,-508.82107737,0.00014465,2]
[424203153,1780656643000,-184.05691112,0.00014472,2]
[424203151,1780656643000,-184.05691112,0.00014456,2]
[424203149,1780656643000,-184.05691112,0.00014441,2]
[424203156,1780656643000,-150.0,0.00014487,2]
[424203155,1780656643000,-150.0,0.00014478,2]
[424203158,1780656643000,-184.05691112,0.00014487,2]
[424203159,1780656643000,-150.0,0.00014487,2]
[424203154,1780656643000,-150.0,0.00014472,2]
[424203163,1780656643000,-150.0,0.00014515,2]
[424203186,1780656643000,-150.0,0.00014612,2]
[424203179,1780656643000,-150.0,0.0001458,2]
[424203195,1780656643000,-150.0,0.00014656,2]
[424203212,1780656643000,-184.05691112,0.00014714,2]
[424203219,1780656643000,-184.05691112,0.00014759,2]
[424203211,1780656643000,-150.0,0.00014714,2]
[424203209,1780656643000,-150.0,0.00014707,2]
[424203213,1780656643000,-184.05691112,0.00014729,2]
[424203218,1780656643000,-150.0,0.00014758,2]
[424203217,1780656643000,-184.05691112,0.00014744,2]
[424203214,1780656643000,-150.0,0.00014729,2]
[424203210,1780656643000,-170.40315346,0.00014713,2]
[424203216,1780656643000,-150.0,0.00014737,2]
[424203220,1780656643000,-150.0,0.00014772,2]
[424203223,1780656643000,-184.05691112,0.00014774,2]
[424203222,1780656643000,-150.0,0.00014772,2]
[424203224,1780656643000,-150.0,0.00014783,2]
[424203227,1780656643000,-508.82107737,0.00014791,2]
[424203226,1780656643000,-250.0,0.0001479,2]
[424203229,1780656643000,-361434.04394084,0.000148,2]
[424203228,1780656643000,-150.0,0.00014799,2]
[424203221,1780656643000,-150.0,0.00014772,2]
[424203208,1780656643000,-150.0,0.00014701,2]
[424203215,1780656643000,-150.0,0.00014732,2]
[424203204,1780656643000,-9517.6370203,0.000147,2]
[424203187,1780656643000,-184.05691112,0.00014623,2]
[424203189,1780656643000,-150.0,0.00014629,2]
[424203192,1780656643000,-150.0,0.0001464,2]
[424203206,1780656643000,-3887.0,0.000147,2]
[424203225,1780656643000,-184.05691112,0.0001479,2]
[424203190,1780656643000,-150.0,0.00014631,2]
[424203194,1780656643000,-184.05691112,0.00014653,2]
[424203188,1780656643000,-150.0,0.00014629,2]
[424203193,1780656643000,-150.0,0.00014644,2]
[424203197,1780656643000,-166.66,0.00014669,2]
[424203191,1780656643000,-184.05691112,0.00014638,2]
[424203196,1780656643000,-184.05691112,0.00014668,2]
[424203207,1780656643000,-150.0,0.00014701,2]
[424203205,1780656643000,-200.0,0.000147,5]
[424203203,1780656643000,-184.05691112,0.00014699,2]
[424203201,1780656643000,-184.05691112,0.00014684,2]
[424203184,1780656643000,-184.05691112,0.00014608,2]
[424203200,1780656643000,-508.82107737,0.00014682,2]
[424203199,1780656643000,-150.0,0.00014681,2]
[424203198,1780656643000,-150.0,0.00014674,2]
[424203202,1780656643000,-150.0,0.00014687,2]